[Event "SixDays Budapest IM-A 11-2024"]
[Site "Budapest"]
[Date "2024.11.22"]
[Round "1.2"]
[White "Nemeth, Zalan"]
[Black "Krishna C R G"]
[Result "0-1"]
[ECO "A53"]
[WhiteElo "2268"]
[BlackElo "2448"]
[Annotator "TA"]
[PlyCount "86"]
[EventDate "2024.11.20"]
[EventType "tourn"]
[EventCountry "HUN"]
[SourceTitle "playchess.com"]
[Source "ChessBase"]
[SourceQuality "1"]
[TimeControl "5400+30"]

{[%evp 24,86,32,37,46,39,68,34,38,30,28,31,29,0,20,-97,-73,-98,-95,-96,-89,-120,-111,-110,-122,-148,-62,-73,-31,-35,146,176,158,-188,-181,451,-164,-268,-292,-278,-277,-280,-268,-256,-278,-261,-216,-282,-241,-260,-279,-384,-395,-373,-374,-378,-275,-418,-425,-584,-566,-632,-625,-666,-657]} 1. d4 {[%emt 0:00:02]} Nf6 {[%emt 0:00:05]} 2. c4 {[%emt 0:00:03]} d6 {[%emt 0:00:07]} 3. Nf3 {[%emt 0:00:46]} Nbd7 {[%emt 0:00:02]} 4. Nc3 {[%emt 0:00:15]} e5 {[%emt 0:00:03]} 5. g3 {[%emt 0:03:19]} c6 {[%emt 0:00:04]} 6. Bg2 {[%emt 0:05:14]} Be7 {[%emt 0:02:26]} 7. O-O {[%emt 0:00:16]} O-O {[%emt 0:00:03]} 8. e4 {[%emt 0:00:39]} a6 {[%emt 0:00:01]} 9. a4 {[%emt 0:05:07]} a5 {[%emt 0:00:10]} 10. h3 {[%emt 0:04:13]} Re8 {[%emt 0:00:03]} 11. Be3 {[%emt 0:01:42]} exd4 {[%emt 0:00:43]} 12. Nxd4 {[%emt 0:07:04]} Nc5 {[%emt 0:00:03]} 13. Qc2 {[%emt 0:03:14]} Qc7 {[%emt 0:01:37]} 14. Rad1 {[%emt 0:00:52]} Bd7 {[%emt 0:00:09]} 15. Rd2 {[%emt 0:03:38]} Rad8 {[%emt 0:01:09] White is slightly better.} 16. Rfd1 {[%emt 0:00:12]} Bc8 {[%emt 0:02:09]} 17. g4 {[%emt 0:07:31]} g6 {[%emt 0:10:21]} 18. Bf4 {[%emt 0:05:49]} Qb6 {[%emt 0:04:53]} 19. Nde2 {[%emt 0:07:35]} (19. Bh6 $11) 19... Be6 $17 {[%emt 0:10:29]} 20. Bxd6 {[%emt 0:03:31]} Rxd6 {[%emt 0:00:22]} 21. Rxd6 {[%emt 0:00:11]} Bxc4 {[%emt 0:00:25][%cal Oc4b3]} 22. R1d4 {[%emt 0:07:43][%cal Oe4e5]} Bxd6 {[%emt 0:24:06]} 23. Rxd6 {[%emt 0:00:06]} Nfd7 {[%emt 0:00:31] Black is much more active.} 24. Ng3 {[%emt 0:04:25][%cal Oe4e5] [#]} Qc7 {[%emt 0:10:56]} (24... Re6 $1 $17 {[%cal Re6d6]} 25. e5 Nxe5 (25... Rxe5 26. Qd2 $17)) 25. Qd2 $15 {[%emt 0:05:36]} Re6 {[%emt 0:11:21]} 26. Rd4 {[%emt 0:02:21]} Nb6 {[%emt 0:15:25]} (26... Bb3 $15 {keeps the upper hand.}) 27. Rd8+ $16 {[%emt 0:03:06]} Kg7 {[%emt 0:00:03][%cal Oh7h6] [#]} 28. Qg5 {[%emt 0:00:31]} (28. Nf5+ $1 $16 {is forced if you want to stay better.} gxf5 29. gxf5 (29. exf5 f6 $16)) 28... f6 $36 {[%emt 0:01:28][%mdl 2048] Keeping White busy.} 29. Nf5+ {[%emt 0:08:05]} Kf7 {[%emt 0:01:07]} 30. Qh6 {[%emt 0:08:51]} (30. Nh6+ $142 Ke7 31. Qxc5+ Kxd8 32. b4) 30... Qxd8 {[%emt 0:00:02]} 31. Qxh7+ {[%emt 0:00:05]} (31. Qg7+ $2 Ke8 32. Ng3 Qe7 (32... Nbxa4 $2 33. Nxa4 Qd1+ 34. Kh2 $19) 33. Qg8+ Kd7 $19) 31... Ke8 {[%emt 0:00:10]} 32. Ng7+ {[%emt 0:01:25]} Kd7 {[%emt 0:00:01]} 33. Nxe6+ {[%emt 0:00:23]} Kxe6 {[%emt 0:00:02]} 34. Qxg6 {[%emt 0:00:24]} Qd4 {[%emt 0:03:44][%cal Ob6d7]} (34... Nbxa4 35. Nxa4 Nxa4 36. e5 $15) 35. g5 {[%emt 0:01:17]} Nd3 {[%emt 0:00:09]} ({Stronger than} 35... Nbxa4 36. Nxa4 Qd1+ (36... Nxa4 $2 {loses.} 37. Qe8+ Kd6 38. Qd8+ Kc5 39. Qxa5+ Bb5 40. Qa7+ Nb6 41. Qa3+ Qb4 42. Qe3+ Kd6 43. Qxb6 $16) 37. Kh2 Qd6+ 38. Kg1 Qd1+ 39. Kh2 Qd6+ 40. e5 Qxe5+ 41. Kg1 Qe1+ (41... Nxa4 42. Qg8+ Kd6 43. Qxc4 $11) 42. Kh2 Qe5+ (42... Nxa4 $2 43. Qe8+ Kd6 44. Qxe1 $18) 43. Kg1 Nxa4 44. Qg8+ Kd6 45. Qxc4 Nxb2 46. Qg8 Qxg5 (46... fxg5 47. Qb8+ Ke6 48. Qxb7 $11) 47. Qb8+ Kc5 48. Qxb7 Qc1+ 49. Bf1 $11) 36. Qe8+ {[%emt 0:00:57]} Kd6 {[%emt 0:00:06]} 37. Qf8+ {[%emt 0:01:32]} Kc7 {[%emt 0:01:01]} 38. Qxf6 {[%emt 0:00:52]} Qxf6 {[%emt 0:00:01]} 39. gxf6 {[%emt 0:00:01]} Nd7 {[%emt 0:00:06]} 40. h4 {[%emt 0:01:03]} (40. Bf1 $142) 40... Nxf6 {[%emt 0:00:05]} ({Much less strong is} 40... Nxb2 41. h5) 41. Bf3 {[%emt 0:00:31] Black is clearly winning.} Kd6 {[%emt 0:01:32]} 42. Nd1 {[%emt 0:00:21]} Ke5 {[%emt 0:01:49]} 43. h5 {[%emt 0:00:12]} Ne1 {[%emt 0:00:27] Weighted Error Value: White=0.49/Black=0.28 (precise) .  Loses game:     	White=1     	---        Mistake:       	White=3     	Black=2      Inaccurate:     	White=5     	Black=2      OK:         	White=7     	Black=7      Best:        	White=4     	Black=5} 0-1

[Event "SixDays Budapest IM-A 11-2024"]
[Site "Budapest"]
[Date "2024.11.22"]
[Round "1.3"]
[White "Kolimar, Kristof Pal"]
[Black "Wang, Hao(ZJ)"]
[Result "1/2-1/2"]
[ECO "A14"]
[WhiteElo "2286"]
[BlackElo "2095"]
[Annotator "RC"]
[PlyCount "108"]
[EventDate "2024.11.20"]
[EventType "tourn"]
[EventCountry "HUN"]
[SourceTitle "playchess.com"]
[Source "ChessBase"]
[SourceQuality "1"]
[TimeControl "5400+30"]

1. Nf3 {[%emt 0:17:48]} Nf6 {[%emt 0:00:59]} 2. c4 {[%emt 0:00:27]} e6 {[%emt 0:00:09]} 3. g3 {[%emt 0:00:16]} d5 {[%emt 0:00:07]} 4. Bg2 {[%emt 0:00:04]} Be7 {[%emt 0:00:06]} 5. O-O {[%emt 0:00:17]} O-O {[%emt 0:00:07]} 6. d4 {[%emt 0:00:46]} dxc4 {[%emt 0:03:37]} 7. Qa4 {[%emt 0:04:25]} Bd7 {[%emt 0:08:30]} 8. Qxc4 {[%emt 0:00:06]} Bc6 {[%emt 0:00:05]} 9. Nc3 {[%emt 0:04:58]} Nbd7 {[%emt 0:00:08]} 10. Rd1 {[%emt 0:02:18]} Nb6 {[%emt 0:03:29]} 11. Qd3 {[%emt 0:03:03]} Bb4 {[%emt 0:02:07]} 12. a3 {[%emt 0:11:54]} Bxc3 {[%emt 0:00:30]} 13. Qxc3 {[%emt 0:00:18]} h6 {[%emt 0:00:40]} 14. b3 {[%emt 0:05:21]} Be4 {[%emt 0:00:43]} 15. a4 {[%emt 0:02:01]} Nbd5 {[%emt 0:00:31]} 16. Qd2 {[%emt 0:00:20]} Re8 {[%emt 0:00:29]} 17. Ba3 {[%emt 0:00:44]} c6 {[%emt 0:00:50]} 18. Ne5 {[%emt 0:04:31]} Bxg2 {[%emt 0:00:54]} 19. Kxg2 {[%emt 0:00:43]} Nd7 {[%emt 0:06:35]} 20. Nc4 {[%emt 0:04:03]} Qg5 {[%emt 0:01:07]} 21. e4 {[%emt 0:07:51]} Qxd2 {[%emt 0:02:32]} 22. Rxd2 {[%emt 0:00:05]} N5f6 {[%emt 0:00:05]} 23. Nd6 {[%emt 0:05:09]} Reb8 {[%emt 0:00:21]} 24. Rc1 {[%emt 0:03:22]} a5 {[%emt 0:00:35]} 25. f3 {[%emt 0:01:31]} Ra6 {[%emt 0:00:21]} 26. Rdc2 {[%emt 0:01:00]} Ne8 {[%emt 0:03:09]} 27. Nc4 {[%emt 0:00:33]} Rd8 {[%emt 0:03:14]} 28. Be7 {[%emt 0:01:43]} Rb8 {[%emt 0:00:54]} 29. g4 {[%emt 0:03:27]} f6 {[%emt 0:04:47]} 30. f4 {[%emt 0:01:52]} Kf7 {[%emt 0:00:28]} 31. Ba3 {[%emt 0:00:13]} Nb6 {[%emt 0:00:32]} 32. Ne3 {[%emt 0:04:06]} Rd8 {[%emt 0:00:05]} 33. Rd1 {[%emt 0:01:20]} Raa8 {[%emt 0:03:01]} 34. Kf3 {[%emt 0:01:16]} g6 {[%emt 0:02:17]} 35. Rcd2 {[%emt 0:02:09]} Rac8 {[%emt 0:04:56]} 36. f5 {[%emt 0:03:04]} Nc7 {[%emt 0:02:35]} 37. Bc5 {[%emt 0:00:33]} Nca8 {[%emt 0:03:55]} 38. h4 {[%emt 0:01:51]} Rg8 {[%emt 0:06:30]} 39. Rh2 {[%emt 0:01:47]} Rcd8 {[%emt 0:02:54]} 40. fxe6+ {[%emt 0:00:54]} Kxe6 {[%emt 0:00:06]} 41. h5 {[%emt 0:00:02]} Nd7 {[%emt 0:00:39]} 42. Ba3 {[%emt 0:00:38]} Kf7 {[%emt 0:10:20]} 43. hxg6+ {[%emt 0:00:37]} Rxg6 {[%emt 0:00:06]} 44. Rdh1 {[%emt 0:00:13]} Nc7 {[%emt 0:02:53]} 45. Nf5 {[%emt 0:01:32]} Ne6 {[%emt 0:00:25]} 46. Nxh6+ {[%emt 0:00:29]} Rxh6 {[%emt 0:01:45]} 47. Rxh6 {[%emt 0:00:01]} Nxd4+ {[%emt 0:00:06]} 48. Ke3 {[%emt 0:01:29]} Nc2+ {[%emt 0:01:20]} 49. Kd3 {[%emt 0:00:41]} Nxa3 {[%emt 0:00:16]} 50. Kc3 {[%emt 0:00:00]} b5 {[%emt 0:03:06]} 51. Kb2 {[%emt 0:00:38]} b4 {[%emt 0:00:31]} 52. Rd1 {[%emt 0:00:24]} Ke6 {[%emt 0:00:21]} 53. Rh7 {[%emt 0:00:59]} c5 {[%emt 0:01:04]} 54. e5 {[%emt 0:00:12]} fxe5 {[%emt 0:07:04]} 1/2-1/2

[Event "SixDays Budapest IM-A 11-2024"]
[Site "Budapest"]
[Date "2024.11.22"]
[Round "1.4"]
[White "Otsuka, Shou"]
[Black "Semprun Martinez, Fernando"]
[Result "1-0"]
[ECO "B12"]
[WhiteElo "2248"]
[BlackElo "2025"]
[Annotator "RC"]
[PlyCount "43"]
[EventDate "2024.11.20"]
[EventType "tourn"]
[EventCountry "HUN"]
[SourceTitle "playchess.com"]
[Source "ChessBase"]
[SourceQuality "1"]
[TimeControl "5400+30"]

1. e4 {[%emt 0:00:02]} c6 {[%emt 0:00:01]} 2. d4 {[%emt 0:01:55]} d5 {[%emt 0:00:01]} 3. e5 {[%emt 0:00:06]} c5 {[%emt 0:00:02]} 4. dxc5 {[%emt 0:00:12]} e6 {[%emt 0:00:01]} 5. a3 {[%emt 0:00:38]} Bxc5 {[%emt 0:00:02]} 6. Qg4 {[%emt 0:00:48]} Kf8 {[%emt 0:03:11]} 7. Nf3 {[%emt 0:06:27]} h5 {[%emt 0:04:14]} 8. Qf4 {[%emt 0:02:01]} Qb6 {[%emt 0:09:53]} 9. Bd3 {[%emt 0:07:51]} Bxf2+ {[%emt 0:02:15]} 10. Ke2 {[%emt 0:00:27]} Bc5 {[%emt 0:03:55]} 11. Nc3 {[%emt 0:09:05]} Qd8 {[%emt 0:06:35]} 12. Rf1 {[%emt 0:00:53]} Nc6 {[%emt 0:00:47]} 13. b4 {[%emt 0:03:15]} Be7 {[%emt 0:04:26]} 14. b5 {[%emt 0:11:56]} Na5 {[%emt 0:00:55]} 15. Nh4 {[%emt 0:02:44]} Nh6 {[%emt 0:03:41]} 16. Ng6+ {[%emt 0:00:38]} Kg8 {[%emt 0:00:01]} 17. Nxh8 {[%emt 0:00:31]} Kxh8 {[%emt 0:00:02]} 18. Qf3 {[%emt 0:03:23]} Qc7 {[%emt 0:01:47]} 19. Qxh5 {[%emt 0:06:09]} Qxc3 {[%emt 0:01:29]} 20. Bxh6 {[%emt 0:01:02]} g6 {[%emt 0:00:08]} 21. Bg7+ {[%emt 0:00:51]} Kxg7 {[%emt 0:00:21]} 22. Rxf7+ {[%emt 0:00:11]} 1-0

[Event "SixDays Budapest IM-A 11-2024"]
[Site "Budapest"]
[Date "2024.11.22"]
[Round "1.5"]
[White "Mahitosh Dey"]
[Black "Horvath, David"]
[Result "1/2-1/2"]
[ECO "A05"]
[WhiteElo "2220"]
[BlackElo "2321"]
[Annotator "RC"]
[PlyCount "26"]
[EventDate "2024.11.20"]
[EventType "tourn"]
[EventCountry "HUN"]
[SourceTitle "playchess.com"]
[Source "ChessBase"]
[SourceQuality "1"]
[TimeControl "5400+30"]

1. Nf3 {[%emt 0:09:09]} Nf6 {[%emt 0:00:15]} 2. c4 {[%emt 0:00:08]} e6 {[%emt 0:02:34]} 3. e3 {[%emt 0:00:16]} b6 {[%emt 0:05:46]} 4. b3 {[%emt 0:00:21]} Bb7 {[%emt 0:01:10]} 5. Bb2 {[%emt 0:00:03]} d5 {[%emt 0:01:36]} 6. Be2 {[%emt 0:01:14]} Bd6 {[%emt 0:04:42]} 7. O-O {[%emt 0:00:37]} O-O {[%emt 0:00:39]} 8. d4 {[%emt 0:01:02]} c5 {[%emt 0:15:47]} 9. cxd5 {[%emt 0:01:16]} Nxd5 {[%emt 0:06:36]} 10. dxc5 {[%emt 0:01:06]} Bxc5 {[%emt 0:00:06]} 11. Nbd2 {[%emt 0:00:35]} Nd7 {[%emt 0:09:47]} 12. Bd3 {[%emt 0:04:57]} N7f6 {[%emt 0:09:38]} 13. Qe2 {[%emt 0:03:06]} a5 {[%emt 0:06:41]} 1/2-1/2

[Event "SixDays Budapest IM-A 11-2024"]
[Site "Budapest"]
[Date "2024.11.23"]
[Round "2.2"]
[White "Semprun Martinez, Fernando"]
[Black "Mahitosh Dey"]
[Result "1/2-1/2"]
[ECO "E71"]
[WhiteElo "2025"]
[BlackElo "2220"]
[Annotator "RC"]
[PlyCount "66"]
[EventDate "2024.11.20"]
[EventType "tourn"]
[EventCountry "HUN"]
[SourceTitle "playchess.com"]
[Source "ChessBase"]
[SourceQuality "1"]
[TimeControl "5400+30"]

1. d4 {[%emt 0:00:02]} Nf6 {[%emt 0:08:18]} 2. c4 {[%emt 0:00:02]} g6 {[%emt 0:00:05]} 3. Nc3 {[%emt 0:00:07]} Bg7 {[%emt 0:00:03]} 4. e4 {[%emt 0:00:06]} d6 {[%emt 0:00:02]} 5. h3 {[%emt 0:00:15]} O-O {[%emt 0:00:21]} 6. Be3 {[%emt 0:00:02]} Nbd7 {[%emt 0:02:16]} 7. g4 {[%emt 0:00:09]} c5 {[%emt 0:00:22]} 8. d5 {[%emt 0:01:00]} Ne8 {[%emt 0:00:27]} 9. Qd2 {[%emt 0:01:29]} a6 {[%emt 0:00:53]} 10. Bh6 {[%emt 0:10:05]} e5 {[%emt 0:02:45]} 11. Nge2 {[%emt 0:03:46]} b5 {[%emt 0:08:59]} 12. Ng3 {[%emt 0:06:15]} bxc4 {[%emt 0:01:46]} 13. Bxc4 {[%emt 0:01:21]} Rb8 {[%emt 0:10:36]} 14. Bxg7 {[%emt 0:09:17]} Kxg7 {[%emt 0:01:20]} 15. h4 {[%emt 0:03:21]} h6 {[%emt 0:00:28]} 16. g5 {[%emt 0:02:54]} h5 {[%emt 0:00:09]} 17. Be2 {[%emt 0:01:28]} Rh8 {[%emt 0:01:51]} 18. O-O-O {[%emt 0:09:43]} c4 {[%emt 0:00:44]} 19. Bxc4 {[%emt 0:04:01]} Nc5 {[%emt 0:01:14]} 20. f4 {[%emt 0:01:37]} Qb6 {[%emt 0:01:35]} 21. f5 {[%emt 0:05:53]} Bd7 {[%emt 0:00:20]} 22. Rh2 {[%emt 0:08:50]} Qb4 {[%emt 0:03:27]} 23. Qe2 {[%emt 0:02:11]} Nc7 {[%emt 0:03:41]} 24. Rf1 {[%emt 0:05:18]} Nb5 {[%emt 0:13:33]} 25. Bxb5 {[%emt 0:00:32]} Bxb5 {[%emt 0:00:05]} 26. Nxb5 {[%emt 0:00:52]} Rxb5 {[%emt 0:02:10]} 27. fxg6 {[%emt 0:05:49]} fxg6 {[%emt 0:00:14]} 28. Qf3 {[%emt 0:03:18]} Rb7 {[%emt 0:00:04]} 29. Nxh5+ {[%emt 0:04:44]} Rxh5 {[%emt 0:02:15]} 30. Qf8+ {[%emt 0:00:55]} Kh7 {[%emt 0:00:04]} 31. Rf7+ {[%emt 0:00:36]} Rxf7 {[%emt 0:00:04]} 32. Qxf7+ {[%emt 0:00:12]} Kh8 {[%emt 0:00:02]} 33. Qf8+ {[%emt 0:03:12]} Kh7 1/2-1/2

[Event "SixDays Budapest IM-A 11-2024"]
[Site "Budapest"]
[Date "2024.11.23"]
[Round "2.3"]
[White "Wang, Hao(ZJ)"]
[Black "Otsuka, Shou"]
[Result "1-0"]
[ECO "C78"]
[WhiteElo "2095"]
[BlackElo "2248"]
[Annotator "RC"]
[PlyCount "111"]
[EventDate "2024.11.20"]
[EventType "tourn"]
[EventCountry "HUN"]
[SourceTitle "playchess.com"]
[Source "ChessBase"]
[SourceQuality "1"]
[TimeControl "5400+30"]

1. e4 {[%emt 0:00:47]} e5 {[%emt 0:00:01]} 2. Nf3 {[%emt 0:00:09]} Nc6 {[%emt 0:00:04]} 3. Bb5 {[%emt 0:00:09]} a6 {[%emt 0:00:06]} 4. Ba4 {[%emt 0:00:09]} Nf6 {[%emt 0:00:04]} 5. O-O {[%emt 0:00:07]} b5 {[%emt 0:00:31]} 6. Bb3 {[%emt 0:00:07]} Bc5 {[%emt 0:00:08]} 7. a4 {[%emt 0:01:20]} Rb8 {[%emt 0:00:05]} 8. axb5 {[%emt 0:00:07]} axb5 {[%emt 0:00:03]} 9. Nxe5 {[%emt 0:00:25]} Nxe5 {[%emt 0:00:06]} 10. d4 {[%emt 0:00:05]} Bxd4 {[%emt 0:00:04]} 11. Qxd4 {[%emt 0:00:08]} d6 {[%emt 0:00:03]} 12. f4 {[%emt 0:00:10]} Nc6 {[%emt 0:01:01]} 13. Qc3 {[%emt 0:01:29]} Ne7 {[%emt 0:00:11]} 14. Ra7 {[%emt 0:04:02]} c5 {[%emt 0:02:44]} 15. e5 {[%emt 0:00:06]} Nfd5 {[%emt 0:02:33]} 16. Bxd5 {[%emt 0:00:10]} Nxd5 {[%emt 0:00:09]} 17. Qf3 {[%emt 0:00:08]} Qb6 {[%emt 0:02:05]} 18. Rxf7 {[%emt 0:02:04]} Kxf7 {[%emt 0:00:09]} 19. Qxd5+ {[%emt 0:00:06]} Be6 {[%emt 0:00:27]} 20. Qd1 {[%emt 0:00:06]} c4+ {[%emt 0:27:37]} 21. Kh1 {[%emt 0:00:05]} Bf5 {[%emt 0:00:06]} 22. Qd5+ {[%emt 0:00:38]} Be6 {[%emt 0:00:07]} 23. Qd1 {[%emt 0:00:04]} Bf5 {[%emt 0:05:10]} 24. Qh5+ {[%emt 0:01:49]} g6 {[%emt 0:02:55]} 25. Qh4 {[%emt 0:00:16]} Qd8 {[%emt 0:03:12]} 26. Qh6 {[%emt 0:02:07]} Qf8 {[%emt 0:00:53]} 27. Qh4 {[%emt 0:04:03]} Qd8 {[%emt 0:00:24]} 28. Qh6 {[%emt 0:04:42]} d5 {[%emt 0:15:00]} 29. Nd2 {[%emt 0:04:32]} Qf8 {[%emt 0:00:22]} 30. Qh4 {[%emt 0:00:24]} Qe7 {[%emt 0:00:06]} 31. Qf2 {[%emt 0:05:57]} d4 {[%emt 0:01:51]} 32. Qxd4 {[%emt 0:09:15]} Rhd8 {[%emt 0:00:06]} 33. Qf2 {[%emt 0:00:20]} Rd5 {[%emt 0:03:00]} 34. Nf3 {[%emt 0:02:25]} Rbd8 {[%emt 0:00:58]} 35. Be3 {[%emt 0:07:35]} Rd1 {[%emt 0:00:42]} 36. Nd4 {[%emt 0:00:07]} Rxf1+ {[%emt 0:01:15]} 37. Qxf1 {[%emt 0:00:02]} Qb7 {[%emt 0:01:11]} 38. Qf2 {[%emt 0:04:49]} Qe4 {[%emt 0:03:58]} 39. h3 {[%emt 0:00:08]} b4 {[%emt 0:01:28]} 40. Kh2 {[%emt 0:07:20]} Kg8 {[%emt 0:01:59]} 41. c3 {[%emt 0:00:27]} bxc3 {[%emt 0:00:57]} 42. bxc3 {[%emt 0:00:06]} Ra8 {[%emt 0:01:25]} 43. Nxf5 {[%emt 0:06:28]} Qxf5 {[%emt 0:01:02]} 44. Qf3 {[%emt 0:00:09]} Rd8 {[%emt 0:00:41]} 45. Qc6 {[%emt 0:00:46]} Qc8 {[%emt 0:02:14]} 46. Qb6 {[%emt 0:01:05]} Re8 {[%emt 0:03:29]} 47. g4 {[%emt 0:04:53]} Re6 {[%emt 0:02:25]} 48. Qd4 {[%emt 0:00:56]} Qc7 {[%emt 0:00:37]} 49. Kg3 {[%emt 0:00:39]} Kf7 {[%emt 0:00:21]} 50. Qe4 {[%emt 0:00:58]} Ke8 {[%emt 0:00:36]} 51. Bd4 {[%emt 0:00:33]} Ra6 {[%emt 0:13:44]} 52. Qd5 {[%emt 0:00:42]} Kf8 {[%emt 0:04:10]} 53. Bc5+ {[%emt 0:00:05]} Kg7 {[%emt 0:00:06]} 54. e6 {[%emt 0:00:04]} Rxe6 {[%emt 0:02:10]} 55. Qxe6 {[%emt 0:01:57]} Qxc5 {[%emt 0:00:06]} 56. Qe5+ {[%emt 0:00:03]} 1-0

[Event "SixDays Budapest IM-A 11-2024"]
[Site "Budapest"]
[Date "2024.11.23"]
[Round "2.4"]
[White "Krishna C R G"]
[Black "Kolimar, Kristof Pal"]
[Result "1-0"]
[ECO "A06"]
[WhiteElo "2448"]
[BlackElo "2286"]
[Annotator "RC"]
[PlyCount "67"]
[EventDate "2024.11.20"]
[EventType "tourn"]
[EventCountry "HUN"]
[SourceTitle "playchess.com"]
[Source "ChessBase"]
[SourceQuality "1"]
[TimeControl "5400+30"]

1. Nf3 {[%emt 0:07:59]} d5 {[%emt 0:00:04]} 2. e3 {[%emt 0:00:10]} c5 {[%emt 0:00:12]} 3. b3 {[%emt 0:00:14]} a6 {[%emt 0:00:12]} 4. Bb2 {[%emt 0:00:09]} Nc6 {[%emt 0:00:06]} 5. d4 {[%emt 0:02:41]} cxd4 {[%emt 0:00:14]} 6. Nxd4 {[%emt 0:02:17]} f6 {[%emt 0:05:07]} 7. Bd3 {[%emt 0:05:49]} Nh6 {[%emt 0:07:53]} 8. O-O {[%emt 0:02:59]} e5 {[%emt 0:04:11]} 9. Nxc6 {[%emt 0:00:46]} bxc6 {[%emt 0:00:01]} 10. c4 {[%emt 0:00:28]} Be6 {[%emt 0:07:28]} 11. Nc3 {[%emt 0:18:11]} Bd6 {[%emt 0:18:56]} 12. cxd5 {[%emt 0:04:37]} cxd5 {[%emt 0:00:11]} 13. Qh5+ {[%emt 0:00:48]} Bf7 {[%emt 0:03:46]} 14. Qe2 {[%emt 0:00:34]} Qa5 {[%emt 0:03:01]} 15. Rfd1 {[%emt 0:03:02]} O-O {[%emt 0:07:27]} 16. Nxd5 {[%emt 0:01:59]} Bxd5 {[%emt 0:08:56]} 17. Bc4 {[%emt 0:00:02]} Bxc4 {[%emt 0:04:37]} 18. Qxc4+ {[%emt 0:00:01]} Nf7 {[%emt 0:02:01]} 19. Rxd6 {[%emt 0:00:03]} Rfc8 {[%emt 0:04:58]} 20. Rc6 {[%emt 0:01:38]} Rxc6 {[%emt 0:00:38]} 21. Qxc6 {[%emt 0:00:01]} Rd8 {[%emt 0:00:02]} 22. h3 {[%emt 0:00:40]} Qd2 {[%emt 0:03:17]} 23. Ba3 {[%emt 0:01:49]} a5 {[%emt 0:06:39]} 24. Qc1 {[%emt 0:12:07]} Qe2 {[%emt 0:04:25]} 25. Be7 {[%emt 0:02:23]} Re8 {[%emt 0:00:06]} 26. Qc6 {[%emt 0:00:47]} Rxe7 {[%emt 0:01:05]} 27. Qc8+ {[%emt 0:00:16]} Nd8 {[%emt 0:00:01]} 28. Qxd8+ {[%emt 0:00:08]} Kf7 {[%emt 0:00:03]} 29. Qxa5 {[%emt 0:01:11]} Rd7 {[%emt 0:00:04]} 30. Qe1 {[%emt 0:01:35]} Qc2 {[%emt 0:01:12]} 31. Qc1 {[%emt 0:00:10]} Qf5 {[%emt 0:01:02]} 32. Qc4+ {[%emt 0:00:07]} Kf8 {[%emt 0:00:30]} 33. a4 {[%emt 0:00:34]} Rd2 {[%emt 0:00:05]} 34. Qb4+ {[%emt 0:00:01]} 1-0

[Event "SixDays Budapest IM-A 11-2024"]
[Site "Budapest"]
[Date "2024.11.23"]
[Round "2.5"]
[White "Fodor, Balazs"]
[Black "Nemeth, Zalan"]
[Result "0-1"]
[ECO "D35"]
[WhiteElo "2206"]
[BlackElo "2268"]
[Annotator "RC"]
[PlyCount "78"]
[EventDate "2024.11.20"]
[EventType "tourn"]
[EventCountry "HUN"]
[SourceTitle "playchess.com"]
[Source "ChessBase"]
[SourceQuality "1"]
[TimeControl "5400+30"]

1. d4 {[%emt 0:00:03]} d5 {[%emt 0:07:33]} 2. c4 {[%emt 0:00:11]} e6 {[%emt 0:00:04]} 3. Nc3 {[%emt 0:00:07]} Nf6 {[%emt 0:00:55]} 4. cxd5 {[%emt 0:00:08]} exd5 {[%emt 0:00:28]} 5. Bg5 {[%emt 0:00:09]} c6 {[%emt 0:00:04]} 6. e3 {[%emt 0:00:08]} g6 {[%emt 0:01:48]} 7. Bd3 {[%emt 0:00:41]} Bg7 {[%emt 0:00:06]} 8. Nge2 {[%emt 0:00:15]} O-O {[%emt 0:00:44]} 9. O-O {[%emt 0:00:31]} h6 {[%emt 0:07:25]} 10. Bh4 {[%emt 0:01:05]} Re8 {[%emt 0:00:14]} 11. Qc2 {[%emt 0:09:30]} Nbd7 {[%emt 0:05:00]} 12. h3 {[%emt 0:03:43]} Nf8 {[%emt 0:06:14]} 13. Rae1 {[%emt 0:05:36]} b6 {[%emt 0:02:49]} 14. Bg3 {[%emt 0:13:32]} Bb7 {[%emt 0:08:54]} 15. Be5 {[%emt 0:03:33]} c5 {[%emt 0:06:18]} 16. Bb5 {[%emt 0:02:45]} Re7 {[%emt 0:01:53]} 17. Nf4 {[%emt 0:14:10]} c4 {[%emt 0:01:50]} 18. Qd1 {[%emt 0:05:27]} a6 {[%emt 0:01:03]} 19. Ba4 {[%emt 0:00:07]} b5 {[%emt 0:01:42]} 20. Bc2 {[%emt 0:00:07]} Bc6 {[%emt 0:01:36]} 21. Bxf6 {[%emt 0:04:22]} Bxf6 {[%emt 0:00:09]} 22. Qf3 {[%emt 0:13:58]} Rd7 {[%emt 0:00:41]} 23. Rd1 {[%emt 0:04:18]} Rb8 {[%emt 0:02:24]} 24. b3 {[%emt 0:01:25]} b4 {[%emt 0:01:24]} 25. Nce2 {[%emt 0:01:03]} Nh7 {[%emt 0:02:22]} 26. bxc4 {[%emt 0:01:52]} Ng5 {[%emt 0:00:10]} 27. Qg3 {[%emt 0:00:07]} dxc4 {[%emt 0:00:09]} 28. d5 {[%emt 0:00:17]} Bb5 {[%emt 0:00:47]} 29. h4 {[%emt 0:01:06]} Nh7 {[%emt 0:00:41]} 30. h5 {[%emt 0:04:42]} g5 {[%emt 0:01:19]} 31. Qg4 {[%emt 0:01:37]} Bg7 {[%emt 0:01:33]} 32. Nh3 {[%emt 0:06:07]} Nf6 {[%emt 0:00:47]} 33. Qf5 {[%emt 0:00:13]} Rxd5 {[%emt 0:00:20]} 34. Rxd5 {[%emt 0:01:33]} Qxd5 {[%emt 0:00:03]} 35. Rb1 {[%emt 0:01:30]} Bd7 {[%emt 0:04:21]} 36. Qxd5 {[%emt 0:00:16]} Nxd5 {[%emt 0:00:02]} 37. Kf1 {[%emt 0:01:02]} a5 {[%emt 0:01:11]} 38. Nhg1 {[%emt 0:00:57]} a4 {[%emt 0:00:52]} 39. Nf3 {[%emt 0:00:19]} b3 {[%emt 0:00:31]} 0-1